bitfinex/quotes_ETHUSD_20241103
["timestamp","ask_amount","ask_price","bid_price","bid_amount"]
[1730652851505,7.580321,2444.2,2444.1,0.0612197]
[1730652851817,8.85637722,2444.2,2444.1,0.0612197]
[1730652852810,5.85637722,2444.2,2444.1,0.0612197]
[1730652853390,4.580321,2444.2,2444.1,0.0612197]
[1730652853919,5.85637722,2444.2,2444.1,0.0612197]
[1730652854883,5.43011164,2444.2,2444.1,0.0612197]
[1730652855086,4.09131,2444.2,2444.1,0.8779197]
[1730652856126,4.94097064,2444.3,2444.1,0.8779197]
[1730652856482,4.09118,2444.3,2444.1,0.8779197]
[1730652857114,4.94086064,2444.4,2444.1,0.8779197]
[1730652857322,5.36700622,2444.5,2444.2,4.09117]
[1730652857323,0.84979064,2444.5,2444.2,4.09117]
[1730652857522,0.84979064,2444.5,2444.3,0.7939]
[1730652857728,4.09058,2444.7,2444.3,0.7939]
[1730652857729,4.94037064,2444.7,2444.3,0.7939]
[1730652857930,4.94037064,2444.7,2444.3,4.09114]
[1730652858102,0.84979064,2444.7,2444.4,0.7939]
[1730652858426,0.84979064,2444.7,2444.5,0.7939]
[1730652858906,9.03058064,2444.8,2444.5,0.7939]
[1730652859088,0.84979064,2444.7,2444.5,0.7939]
[1730652859287,4.94042064,2444.7,2444.5,0.7939]
[1730652859538,4.94043064,2444.6,2444.5,0.7939]
[1730652860800,4.09064,2444.6,2444.5,0.7939]
[1730652861189,4.94037064,2444.7,2444.5,0.7939]
[1730652861615,0.84979064,2444.6,2444.5,0.7939]
[1730652861836,0.84979064,2444.7,2444.5,0.7939]
[1730652862237,0.84979064,2444.7,2444.5,0.488477]
[1730652862395,0.84979064,2444.8,2444.6,0.7939]
[1730652862714,0.84979064,2444.9,2444.6,0.7939]
[1730652863120,9.02999064,2445.0,2444.6,0.7939]
[1730652863444,4.93987064,2445.0,2444.6,0.7939]
[1730652863589,4.93987064,2445.0,2444.6,1.3312087]
[1730652863989,0.84979064,2445.0,2444.6,0.5373087]
[1730652864192,0.84979064,2445.0,2444.7,0.7939]
[1730652864428,0.84979064,2445.0,2444.7,4.09047]
[1730652864606,0.84979064,2445.1,2444.8,0.7939]
[1730652865034,0.84979064,2445.1,2444.9,0.5]
[1730652865238,4.93952064,2445.2,2444.9,0.5]
[1730652866407,4.93952064,2445.2,2445.0,0.7939]
[1730652866938,4.08981,2445.1,2445.0,0.7939]
[1730652867429,4.93945064,2445.2,2445.0,0.7939]
[1730652868649,5.36556622,2445.3,2445.0,0.7939]
[1730652868650,0.84979064,2445.3,2445.0,4.08996]
[1730652868830,7.06926318,2445.5,2445.2,0.7939]
[1730652868831,0.84979064,2445.4,2445.2,0.7939]
[1730652870242,0.84979064,2445.5,2445.2,0.7939]
[1730652871067,4.08931,2445.4,2445.2,0.7939]
[1730652872029,4.93910064,2445.4,2445.2,0.7939]
[1730652872230,4.08931,2445.4,2445.2,0.7939]
[1730652873408,4.93910064,2445.4,2445.2,0.7939]
[1730652875147,4.08931,2445.4,2445.2,0.7939]
[1730652875347,4.93893064,2445.5,2445.2,0.7939]
[1730652875536,4.93894064,2445.5,2445.2,0.7939]
[1730652880218,4.08914,2445.5,2445.2,0.7939]
[1730652880529,4.08938,2445.4,2445.2,0.7939]
[1730652885737,4.08898,2445.6,2445.2,0.7939]
[1730652885738,4.08914,2445.5,2445.2,0.7939]
[1730652886750,4.08933,2445.4,2445.2,0.7939]
[1730652887867,4.08915,2445.5,2445.2,0.7939]
[1730652889962,4.08897,2445.6,2445.2,0.7939]
[1730652890146,4.58309606,2445.5,2445.2,0.7939]
[1730652891643,4.08936,2445.4,2445.2,0.7939]
[1730652892281,8.67239606,2445.5,2445.2,0.7939]
[1730652892485,4.58309606,2445.5,2445.2,0.7939]
[1730652892670,4.08947,2445.3,2445.0,0.7681]
[1730652893962,4.08931,2445.4,2445.0,4.85806]
[1730652894765,4.08931,2445.4,2445.0,0.7681]
[1730652895694,4.08931,2445.4,2445.0,4.85799]
[1730652896401,9.13095567,2445.4,2445.0,0.7681]
[1730652896605,5.04151567,2445.4,2445.0,0.7681]
[1730652897767,5.04151567,2445.4,2445.0,4.85799]
[1730652899269,4.08931,2445.4,2445.0,4.85799]
[1730652900103,4.93910064,2445.4,2445.0,4.85799]
[1730652900862,4.93910064,2445.4,2445.0,0.7681]
[1730652901091,4.93910064,2445.4,2445.0,4.85807]
[1730652901923,0.84979064,2445.4,2445.3,4.08947]
[1730652902234,0.84979064,2445.6,2445.5,0.7529]
[1730652902385,0.84979064,2445.6,2445.5,4.84204]
[1730652902816,1.70396696,2445.9,2445.6,4.84187]
[1730652902817,0.84979064,2445.7,2445.6,4.84187]
[1730652902998,1.27605622,2445.9,2445.7,4.8417]
[1730652902999,0.84979064,2445.8,2445.7,4.8417]
[1730652903322,1.27605622,2445.9,2445.7,4.8417]
[1730652903323,0.84979064,2445.9,2445.8,4.84154]
[1730652903796,0.84979064,2446.0,2445.8,4.84154]
[1730652904005,0.84979064,2446.0,2445.9,4.08847]
[1730652905500,0.84979064,2446.0,2445.8,8.93018]
[1730652905686,0.84979064,2445.9,2445.8,0.7529]
[1730652906215,1.27605622,2445.9,2445.8,0.7529]
[1730652906604,5.36452622,2445.9,2445.8,0.7529]
[1730652906903,1.27605622,2445.9,2445.8,0.7529]
[1730652907099,5.79234696,2446.0,2445.8,0.7529]
[1730652907634,1.27840897,2445.9,2445.8,0.7529]
[1730652908118,1.70396696,2445.9,2445.8,0.7529]
[1730652908319,1.70396696,2445.9,2445.6,0.7529]
[1730652908519,0.85241125,2445.7,2445.6,0.7529]
[1730652908825,1.27861688,2445.7,2445.6,0.7529]
[1730652914322,0.85296959,2445.7,2445.6,5.73497]
[1730652914620,0.85296959,2445.8,2445.7,4.8417]
[1730652915211,0.85296959,2445.9,2445.8,4.08864]
[1730652915402,0.85296959,2445.9,2445.7,4.8417]
[1730652915607,0.85296959,2445.8,2445.7,4.84162]
[1730652916762,0.85296959,2445.9,2445.8,4.84154]
[1730652917113,0.85296959,2446.0,2445.9,4.90437]
[1730652917306,0.85251207,2446.1,2446.0,4.9042]
[1730652917523,0.85251207,2446.1,2446.0,5.39462]
[1730652920452,0.85251207,2446.1,2446.0,4.9042]
[1730652921363,0.85251207,2446.2,2446.0,0.8159]
[1730652921523,0.85251207,2446.2,2446.1,4.08814]
[1730652921728,0.85251207,2446.2,2446.0,0.8159]
[1730652922126,0.85251207,2446.1,2446.0,0.8159]
[1730652923973,4.94073207,2446.1,2445.7,5.4046]
[1730652924175,9.02898207,2446.1,2445.7,1.3159]
[1730652924387,0.85251207,2446.0,2445.7,1.3159]
[1730652924881,0.85251207,2446.0,2445.7,5.40468]
[1730652925049,4.08848,2445.9,2445.7,1.3159]
[1730652925374,4.94099207,2445.9,2445.7,1.3159]
[1730652926080,0.85251207,2445.9,2445.7,1.3159]
[1730652927275,0.85251207,2446.0,2445.7,1.3159]
[1730652927599,4.94098207,2445.9,2445.7,1.3159]
[1730652927782,0.85251207,2445.8,2445.7,1.3159]
[1730652927987,1.47447197,2445.8,2445.7,0.5]
[1730652928274,5.36725688,2445.8,2445.7,1.0]
[1730652928585,4.87014,2445.8,2445.7,1.0]
[1730652928751,9.57410696,2445.8,2445.7,1.0]
[1730652928973,10.00122839,2445.8,2445.7,1.0]
[1730652930402,11.23870503,2445.8,2445.7,1.0]
[1730652930695,13.02816814,2445.8,2445.7,1.0]
[1730652932177,11.78853679,2445.8,2445.7,1.5]
[1730652933710,9.65960311,2445.8,2445.7,1.5]
[1730652934066,11.78853679,2445.8,2445.7,1.5]
[1730652934897,1.70251787,2445.8,2445.7,1.5]
[1730652935156,0.85129321,2445.8,2445.7,2.2573]
[1730652935272,0.85129321,2445.9,2445.7,6.3461]
[1730652935602,0.85129321,2445.9,2445.8,1.043494]
[1730652936270,0.85129321,2445.9,2445.7,6.84607]
[1730652936466,0.85129321,2446.0,2445.7,10.93484]
[1730652936873,1.27693332,2446.1,2445.7,10.93479]
[1730652936874,0.85129321,2445.9,2445.7,10.93479]
[1730652937073,0.85129321,2445.9,2445.7,6.84602]
[1730652937610,0.85129321,2445.9,2445.7,2.7573]
[1730652937770,0.85129321,2445.8,2445.7,2.7573]
[1730652938104,0.85129321,2445.9,2445.7,2.7573]
[1730652939768,0.85129321,2445.8,2445.7,2.7573]
[1730652946890,4.08833,2446.0,2445.7,2.7573]
[1730652950825,4.905985,2446.0,2445.7,2.7573]
[1730652956494,4.08833,2446.0,2445.7,2.7573]
[1730652957494,4.89724,2445.8,2445.7,2.0]
[1730652958902,4.08822,2446.1,2445.7,2.0]
[1730652959133,4.0883,2446.0,2445.7,2.0]
[1730652959336,4.08847,2445.9,2445.7,2.0]
[1730652961120,4.906139,2445.9,2445.7,2.0]
[1730652961298,4.89724,2445.8,2445.7,2.0]
[1730652962138,7.02437209,2445.8,2445.7,2.0]
[1730652962492,6.21577209,2445.8,2445.7,2.0]
[1730652965857,6.21515329,2445.8,2445.7,2.0]
[1730652966715,7.66332411,2445.8,2445.7,2.0]
[1730652967344,6.33761082,2445.8,2445.7,2.0]
[1730652968154,5.53681082,2445.8,2445.7,2.0]
[1730652968322,4.08864,2445.8,2445.7,2.0]
[1730652969057,4.88944,2445.8,2445.7,2.0]
[1730652969213,7.44005387,2445.8,2445.7,2.0]
[1730652970354,7.43645098,2445.8,2445.7,2.0]
[1730652972348,4.88944,2445.8,2445.7,2.0]
[1730652972520,8.54346348,2445.8,2445.7,2.0]
[1730652972930,7.43735738,2445.8,2445.7,2.0]
[1730652973154,6.21123301,2445.8,2445.7,2.0]
[1730652973360,4.08864,2445.8,2445.7,2.0]
[1730652974719,6.21131851,2445.8,2445.7,2.0]
[1730652975124,4.08864,2445.8,2445.7,2.0]
[1730652975659,5.35395201,2445.9,2445.7,2.0]
[1730652975860,6.21185926,2445.8,2445.7,2.7981]
[1730652976563,2.12321926,2445.8,2445.7,2.7981]
[1730652977125,2.12321926,2445.9,2445.7,2.7981]
[1730652977327,6.21176926,2445.9,2445.7,2.7981]
[1730652977545,4.08864,2445.8,2445.7,2.7981]
[1730652977863,6.21185926,2445.8,2445.7,2.7981]
[1730652978265,2.12321926,2445.8,2445.7,2.7981]
[1730652978929,6.21185926,2445.8,2445.7,2.7981]
[1730652979129,8.02460019,2445.8,2445.7,2.0]
[1730652979469,5.90138093,2445.8,2445.7,2.0]
[1730652980319,8.44859514,2445.8,2445.7,2.0]
[1730652980943,5.90138093,2445.8,2445.7,2.0]
[1730652981170,8.44976,2445.8,2445.7,2.0]
[1730652983629,5.90138093,2445.8,2445.7,2.0]
[1730652983965,8.44904715,2445.8,2445.7,2.0]
[1730652986356,4.36040715,2445.8,2445.1,0.7656]
[1730652986659,0.84914335,2445.2,2445.1,0.7656]
[1730652987563,0.84914335,2445.2,2445.1,1.66014]
[1730652987995,0.84914335,2445.2,2445.1,5.74995]
[1730652988159,0.84914335,2445.3,2445.2,4.85524]
[1730652988492,0.84914335,2445.4,2445.3,4.08947]
[1730652988662,0.84914335,2445.4,2445.3,5.839029]
[1730652989467,0.84914335,2445.5,2445.3,5.839029]
[1730652989693,0.84914335,2445.4,2445.3,5.839029]
[1730652990398,0.84914335,2445.4,2445.3,1.749559]
[1730652990696,0.84914335,2445.4,2445.3,0.7656]
[1730652991407,1.27371502,2445.4,2445.3,0.7656]
[1730652991656,0.84843881,2445.4,2445.3,0.7656]
[1730652992107,1.27371502,2445.4,2445.3,0.7656]
[1730652992312,4.08947,2445.3,2445.0,1.2243912]
[1730652992619,0.84844795,2445.2,2445.0,1.2243912]
[1730652997220,0.84844795,2445.2,2445.0,5.3143412]
[1730652997440,0.84844795,2445.2,2445.0,1.2243912]
[1730652998033,0.84844795,2445.2,2445.0,0.7985]
[1730652998731,0.84844795,2445.1,2445.0,0.7985]
[1730652999099,0.84844795,2445.2,2445.0,0.7985]
[1730652999258,0.84844795,2445.1,2445.0,0.7985]
[1730653005450,0.84844795,2445.1,2444.8,4.88879]
[1730653005635,0.84844795,2445.0,2444.8,4.88879]
[1730653006562,0.84844795,2445.0,2444.9,4.09014]
[1730653008738,1.12216297,2445.1,2444.9,4.09014]
[1730653009057,1.12216297,2445.1,2444.8,4.88879]
[1730653009563,1.12216297,2445.1,2444.8,8.97901]
[1730653010977,1.12216297,2445.1,2444.8,4.88872]
[1730653011276,1.12216297,2445.1,2444.8,9.467822]
[1730653011452,1.12216297,2445.1,2444.8,5.377592]
[1730653011779,1.12216297,2445.1,2444.8,4.88872]
[1730653012785,1.12216297,2445.1,2444.8,0.7985]
[1730653012786,5.21200297,2445.1,2444.8,0.7985]
[1730653013076,4.08984,2445.1,2444.8,0.7985]
[1730653013372,4.08999,2445.0,2444.6,4.8703]
[1730653013589,1.07027167,2445.0,2444.6,0.7798]
[1730653013870,2.76855837,2445.0,2444.6,0.7798]
[1730653014145,5.7882667,2445.0,2444.6,4.87044]
[1730653014276,1.6982867,2445.0,2444.7,4.09047]
[1730653014584,4.08998,2445.0,2444.6,4.87044]
[1730653014993,5.7882667,2445.0,2444.6,4.87044]
[1730653015550,4.08998,2445.0,2444.6,4.87044]
[1730653015750,1.6982867,2445.0,2444.6,4.87044]
[1730653015952,5.7882767,2445.0,2444.6,5.76657]
[1730653017462,4.08999,2445.0,2444.6,5.76657]
[1730653017786,1.27114309,2444.9,2444.6,5.76657]
[1730653018606,5.36113309,2445.0,2444.6,5.76657]
[1730653018917,0.84697056,2444.8,2444.6,5.76657]
[1730653019276,0.84697056,2444.8,2444.6,1.67593]
[1730653019806,0.84697056,2444.8,2444.6,5.76655]
[1730653020115,0.84697056,2444.9,2444.6,5.76655]
[1730653020608,0.84697056,2444.8,2444.6,1.67593]
[1730653021414,0.84697056,2444.8,2444.6,5.76655]
[1730653021882,0.84697056,2444.9,2444.6,5.76655]
[1730653023418,0.84697056,2444.9,2444.6,1.67593]
[1730653023604,0.84697056,2444.8,2444.6,0.7798]
[1730653025125,0.84697056,2444.8,2444.6,4.87042]
[1730653025334,0.84697056,2444.9,2444.6,4.87042]
[1730653025689,0.84697056,2444.8,2444.6,0.7798]
[1730653027111,0.84697056,2444.8,2444.5,4.09071]
[1730653027428,0.84697056,2444.8,2444.5,4.09081]
[1730653027596,0.84697056,2444.8,2444.5,8.18155]
[1730653027798,0.84697056,2444.8,2444.5,4.09074]
[1730653028631,0.84697056,2444.8,2444.5,4.09071]
[1730653028793,0.84697056,2444.8,2444.5,4.70686501]
[1730653030627,0.84697056,2444.9,2444.5,8.79758501]
[1730653030854,0.84697056,2444.8,2444.5,8.79758501]
[1730653031228,0.84697056,2444.8,2444.5,4.70686501]
[1730653031431,0.84697056,2444.8,2444.6,0.5511665]
[1730653031630,0.84697056,2444.8,2444.5,4.70686501]
[1730653037268,0.84697056,2444.8,2444.5,4.70684501]
[1730653037634,0.84697056,2444.8,2444.5,8.79755501]
[1730653037830,0.84697056,2444.8,2444.5,4.70684501]
[1730653038065,0.8460022,2444.8,2444.5,4.70684501]
[1730653038458,5.36129309,2444.9,2444.5,4.70684501]
[1730653039343,1.27114309,2444.9,2444.6,4.09061]
[1730653041760,1.27114309,2444.9,2444.7,4.09046]
[1730653041946,1.27114309,2444.9,2444.7,0.763]
[1730653043285,0.27114309,2444.9,2444.7,0.763]
[1730653045386,5.7882767,2445.0,2444.7,0.763]
[1730653047482,4.09048,2444.7,2444.6,0.42619957]
[1730653047803,6.10652009,2444.7,2444.6,0.42619957]
[1730653048003,0.75,2444.7,2444.6,0.42619957]
[1730653048205,0.75,2444.7,2444.3,4.09106]
[1730653048358,0.84780606,2444.6,2444.3,4.09106]
[1730653048999,0.84780606,2444.5,2444.3,4.09106]
[1730653049212,0.84780606,2444.5,2444.2,4.93611788]
[1730653049499,0.84780606,2444.5,2444.2,5.95162471]
[1730653050066,0.84780606,2444.5,2444.2,0.84481788]
[1730653050270,0.84780606,2444.5,2444.1,0.48736805]
[1730653050271,0.84780606,2444.4,2444.1,0.48736805]
[1730653050714,0.84780606,2444.4,2444.1,4.57878805]
[1730653050979,0.84780606,2444.4,2444.1,0.48736805]
[1730653051300,4.09131,2444.2,2444.1,0.0612197]
[1730653051486,7.01380901,2444.2,2444.1,0.0612197]
[1730653053264,8.2005981,2444.2,2444.1,0.0612197]
[1730653053594,8.2005981,2444.2,2444.1,0.5612197]
[1730653055391,8.19639333,2444.2,2444.1,0.5612197]
[1730653055603,9.19013661,2444.2,2444.1,0.5612197]
[1730653057591,9.19013661,2444.2,2444.1,1.0612197]
[1730653059678,12.19013661,2444.2,2444.1,1.0612197]
[1730653060591,12.18905037,2444.2,2444.1,1.0612197]
[1730653060914,12.61269677,2444.2,2444.1,1.0612197]
[1730653061515,10.49814031,2444.2,2444.1,1.0612197]
[1730653061813,10.49814031,2444.2,2444.1,1.5612197]
[1730653062411,12.18870389,2444.2,2444.1,1.5612197]
[1730653062623,12.18835687,2444.2,2444.1,1.5612197]
[1730653063497,10.54149792,2444.2,2444.1,1.5612197]
[1730653063704,12.17401735,2444.2,2444.1,1.5612197]
[1730653065092,10.48380079,2444.2,2444.1,1.5612197]
[1730653065399,10.54100893,2444.2,2444.1,1.5612197]
[1730653065721,10.54100893,2444.2,2444.1,2.0612197]
[1730653066327,10.54096484,2444.2,2444.1,2.0612197]
[1730653066503,5.35834684,2444.2,2444.1,2.0612197]
[1730653066683,2.11270427,2444.4,2444.1,2.0612197]
[1730653066684,0.84468064,2444.4,2444.1,6.9443697]
[1730653066888,1.26703684,2444.5,2444.3,0.7918]
[1730653066889,0.84468064,2444.5,2444.3,0.7918]
[1730653067111,5.35759684,2444.7,2444.4,0.48831]
[1730653067112,0.84468064,2444.6,2444.4,0.48831]
[1730653067310,4.09081,2444.5,2444.3,0.7918]
[1730653069019,8.18174,2444.5,2444.3,0.7918]
[1730653069232,9.02644064,2444.5,2444.3,0.7918]
[1730653069399,4.93549064,2444.5,2444.3,0.7918]
[1730653070845,4.09098,2444.4,2444.3,0.7918]
[1730653071135,9.02641064,2444.5,2444.3,0.7918]
[1730653071296,4.93549064,2444.5,2444.3,0.7918]
[1730653071833,4.93549064,2444.5,2444.1,3.3281197]
[1730653072020,4.93549064,2444.5,2444.2,0.74197197]
[1730653072526,4.09081,2444.5,2444.1,7.4195997]
[1730653072827,4.09081,2444.5,2444.1,3.3281197]
[1730653073533,8.18175,2444.5,2444.1,3.3281197]
[1730653073732,4.09081,2444.5,2444.1,3.3281197]
[1730653076633,4.93551436,2444.6,2444.2,0.7669]
[1730653076936,4.93551436,2444.6,2444.3,0.33281197]
[1730653078351,4.93551436,2444.6,2444.2,4.8582]
[1730653078543,4.93551436,2444.6,2444.2,0.7669]
[1730653078746,4.09083,2444.5,2444.2,0.7669]
[1730653079343,4.93569436,2444.5,2444.2,0.7669]
[1730653079522,0.84486436,2444.5,2444.2,0.7669]
[1730653080157,0.84486436,2444.5,2444.2,1.91801497]
[1730653080456,4.93553436,2444.6,2444.2,1.91801497]
[1730653080660,0.84486436,2444.6,2444.3,4.85803]
[1730653080818,0.84486436,2444.6,2444.3,0.7669]
[1730653081022,4.09082,2444.5,2444.3,0.7669]
[1730653081449,0.84486436,2444.6,2444.3,0.7669]
[1730653081725,4.93550436,2444.6,2444.3,0.7669]
[1730653083540,0.84486436,2444.6,2444.3,0.7669]
[1730653083732,0.84486436,2444.6,2444.3,6.00912197]
[1730653085468,1.26729655,2444.7,2444.5,8.94843]
[1730653085469,0.84486436,2444.7,2444.5,8.94843]
[1730653085667,1.26729655,2444.8,2444.6,4.09064]
[1730653085668,0.84486436,2444.8,2444.6,4.09064]
[1730653085858,0.84486436,2444.8,2444.7,0.7669]
[1730653086567,0.84486436,2444.8,2444.4,4.09097]
[1730653086774,0.84486436,2444.8,2444.5,4.85771]
[1730653087567,0.84486436,2444.8,2444.5,0.7669]
[1730653087769,4.93535436,2444.7,2444.5,0.7669]
[1730653088088,4.93535436,2444.7,2444.3,0.7669]
[1730653088431,4.93535436,2444.7,2444.3,6.00911797]
[1730653089273,4.93535436,2444.7,2444.3,1.91797797]
[1730653089938,4.93535436,2444.7,2444.3,6.00909797]
[1730653090344,0.84486436,2444.6,2444.3,6.00909797]
[1730653092074,0.84486436,2444.6,2444.3,6.00904797]
[1730653094271,0.84486436,2444.6,2444.3,6.00904797]
[1730653094482,0.84486436,2444.5,2444.3,1.91797797]
[1730653095177,0.84486436,2444.6,2444.3,6.00903797]
[1730653096092,0.84486436,2444.5,2444.3,1.91797797]
[1730653096393,0.84486436,2444.6,2444.3,1.91797797]
[1730653096594,0.84486436,2444.5,2444.3,1.91797797]
[1730653096895,0.84486436,2444.6,2444.3,6.00911797]
[1730653097553,0.84486436,2444.6,2444.3,6.0909325]
[1730653098492,4.93558436,2444.6,2444.3,0.7669]
[1730653098991,0.84486436,2444.5,2444.3,0.7669]
[1730653100607,4.091,2444.4,2444.1,3.3843197]
[1730653100905,4.091,2444.4,2444.1,2.5612197]
[1730653100906,1.60356436,2444.4,2444.1,2.5612197]
[1730653103399,0.84486436,2444.3,2444.1,2.5612197]
[1730653105483,4.93617436,2444.2,2444.1,2.5612197]
[1730653105701,5.35860655,2444.2,2444.1,2.5612197]
[1730653109419,6.98842116,2444.2,2444.1,2.5612197]
[1730653110311,5.29869243,2444.2,2444.1,2.5612197]
[1730653110523,2.89711116,2444.2,2444.1,2.5612197]
[1730653112521,2.90590651,2444.2,2444.1,2.5612197]
[1730653114183,6.99721651,2444.2,2444.1,2.5612197]
[1730653114379,7.41633224,2444.2,2444.1,2.5612197]
[1730653114608,5.29869243,2444.2,2444.1,2.5612197]
[1730653114809,7.41633224,2444.2,2444.1,2.5612197]
[1730653115016,6.99736631,2444.2,2444.1,2.5612197]
[1730653115427,6.99729626,2444.2,2444.1,2.5612197]
[1730653116715,2.90598626,2444.2,2444.1,2.5612197]
[1730653117330,6.99729626,2444.2,2444.1,2.5612197]
[1730653118587,2.90570188,2444.2,2444.1,2.5612197]
[1730653119985,2.90570188,2444.2,2444.1,0.0612197]
[1730653120189,2.90570188,2444.2,2444.1,0.8764197]
[1730653120190,1.69831945,2444.2,2444.1,0.8764197]
[1730653120391,1.27370457,2444.2,2444.1,1.37321767]
[1730653121039,1.27370457,2444.2,2444.1,5.46469767]
[1730653121608,1.27370457,2444.2,2444.1,1.37321767]
[1730653124139,1.27370457,2444.2,2444.1,5.46469767]
[1730653124967,1.69831945,2444.3,2444.1,5.46469767]
[1730653124968,1.27370457,2444.3,2444.1,1.37321767]
[1730653125263,0.84965124,2444.2,2444.1,0.8764197]
[1730653126067,0.84965124,2444.2,2444.1,4.9678997]
[1730653126234,1.27370457,2444.2,2444.1,4.9678797]
[1730653126438,1.27370457,2444.3,2444.1,5.87383667]
[1730653126819,0.85033981,2444.2,2444.1,5.87375667]
[1730653127337,1.27370457,2444.3,2444.1,5.87375667]
[1730653127660,0.85034226,2444.2,2444.1,5.87375667]
[1730653127859,0.27370457,2444.3,2444.1,5.87375667]
[1730653128833,0.27370457,2444.3,2444.1,1.78237667]
[1730653129029,1.69831945,2444.3,2444.1,0.0612197]
[1730653129234,2.90350398,2444.3,2444.1,0.0612197]
[1730653129663,6.12519453,2444.2,2444.1,0.0612197]
[1730653129963,8.25151569,2444.2,2444.1,0.0612197]
[1730653130163,9.61239527,2444.2,2444.1,0.0612197]
[1730653132652,7.48607411,2444.2,2444.1,0.5612197]
[1730653133523,9.61106891,2444.2,2444.1,0.5612197]
[1730653133838,7.48607411,2444.2,2444.1,0.5612197]
[1730653134225,9.61020184,2444.2,2444.1,0.5612197]
[1730653134822,7.48607411,2444.2,2444.1,0.5612197]
[1730653135027,9.61009913,2444.2,2444.1,0.5612197]
[1730653135736,9.61099166,2444.2,2444.1,0.5612197]
[1730653135943,7.48607411,2444.2,2444.1,0.5612197]
[1730653136266,8.98773854,2444.2,2444.1,0.5612197]
[1730653136951,10.03523397,2444.2,2444.1,1.0612197]
[1730653137268,8.98773854,2444.2,2444.1,1.0612197]
[1730653137459,11.53643597,2444.2,2444.1,1.0612197]
[1730653137660,8.98773854,2444.2,2444.1,1.0612197]
[1730653137868,11.53665922,2444.2,2444.1,1.0612197]
[1730653138028,8.98773854,2444.2,2444.1,1.0612197]
[1730653138430,11.53621759,2444.2,2444.1,1.0612197]
[1730653141585,4.65022,2443.3,2443.2,0.42626509]
[1730653141729,4.09349,2442.9,2442.8,0.0612197]
[1730653141939,7.97824658,2442.9,2442.8,0.0612197]
[1730653142129,8.58392539,2442.9,2442.8,0.0612197]
[1730653142339,10.70345166,2442.9,2442.8,0.0612197]
[1730653143272,10.2781576,2442.9,2442.8,0.0612197]
[1730653144474,8.64885043,2442.9,2442.8,0.0612197]
[1730653145888,10.27951505,2442.9,2442.8,0.0612197]
[1730653146246,8.64740999,2442.9,2442.8,0.0612197]
[1730653147392,6.95830437,2442.9,2442.8,0.0612197]
[1730653147601,5.4964936,2442.9,2442.8,0.0612197]
[1730653147748,4.65089,2442.9,2442.8,0.0612197]
[1730653147943,4.09349,2442.9,2442.8,0.0612197]
[1730653148267,4.09335,2443.0,2442.8,0.0612197]
[1730653149054,4.09349,2442.9,2442.8,0.0612197]
[1730653149281,5.12333837,2442.9,2442.8,0.0612197]
[1730653149445,4.09349,2442.9,2442.8,0.0612197]
[1730653149643,5.35953009,2442.9,2442.8,0.0612197]
[1730653149847,4.09349,2442.9,2442.8,0.0612197]
[1730653150076,8.18682,2443.0,2442.8,0.0612197]
[1730653150257,4.09349,2442.9,2442.8,0.0612197]
[1730653152951,4.912174,2442.9,2442.8,0.0612197]
[1730653153691,4.09349,2442.9,2442.8,0.0612197]
[1730653159180,4.09335,2443.0,2442.8,0.0612197]
[1730653159503,4.09349,2442.9,2442.8,0.0612197]
[1730653160310,4.09311,2443.2,2442.8,0.8313197]
[1730653160455,5.6916936,2443.4,2442.9,4.09344]
[1730653160456,4.09279,2443.4,2442.9,4.09344]
[1730653160677,8.18559,2443.4,2442.9,5.00345885]
[1730653160878,4.09279,2443.4,2442.9,5.00345885]
[1730653161220,8.18558,2443.4,2442.9,5.00345885]
[1730653161578,4.09279,2443.4,2442.9,5.00345885]
[1730653161897,4.09279,2443.4,2443.0,0.7701]
[1730653162076,8.18556,2443.4,2443.0,0.7701]
[1730653162484,4.09275,2443.4,2443.0,0.7701]
[1730653162686,4.09275,2443.4,2443.0,1.76293386]
[1730653162918,4.09244,2443.6,2443.0,5.85612386]
[1730653163124,4.09209,2443.8,2443.2,4.09297]
[1730653163413,4.09217,2443.7,2443.2,4.09297]
[1730653163979,4.09232,2443.6,2443.1,4.86315]
[1730653164278,4.09232,2443.6,2443.1,4.94500272]
[1730653164487,4.09232,2443.6,2443.1,5.76697027]
[1730653165202,8.18456,2443.7,2443.2,4.09298]
[1730653165785,4.09235,2443.6,2443.2,4.09298]
[1730653167384,4.09199,2443.8,2443.2,4.09298]
[1730653167590,4.09199,2443.8,2443.2,4.09288]
[1730653167796,0.8456036,2444.0,2443.6,0.7701]
[1730653168009,4.09166,2444.0,2443.6,0.7701]
[1730653168610,4.9370936,2444.1,2443.6,4.86241]
[1730653168824,8.18276,2444.2,2443.7,4.0921]
[1730653169091,8.18276,2444.2,2443.6,4.94425334]
[1730653169092,4.09159,2444.1,2443.6,4.86241]
[1730653169293,4.09135,2444.2,2443.6,4.86233]
[1730653169600,4.09135,2444.2,2443.7,4.09214]
[1730653169805,4.09135,2444.2,2443.8,0.7701]
[1730653170728,8.18277,2444.2,2443.8,0.7701]
[1730653171331,4.9369536,2444.2,2443.8,0.7701]
[1730653171689,4.09135,2444.2,2443.8,0.7701]
[1730653171891,8.18278,2444.2,2443.8,0.7701]
[1730653172331,4.0915,2444.1,2443.8,0.7701]
[1730653172698,4.09135,2444.2,2443.8,0.7701]
[1730653175341,4.0911,2444.4,2444.0,0.8124]
[1730653175500,4.0911,2444.4,2444.0,4.90403]
[1730653175708,4.9364736,2444.5,2444.0,4.90403]
[1730653176051,4.9364736,2444.5,2444.0,4.90396]
[1730653176341,4.09107,2444.4,2444.0,0.8124]
[1730653176643,4.09124,2444.3,2444.0,0.8124]
[1730653177007,4.09132,2444.2,2444.0,0.8124]
[1730653177747,4.09116,2444.3,2444.0,0.8124]
[1730653183213,8.1824,2444.3,2444.0,0.8124]
[1730653183424,4.09116,2444.3,2444.0,0.8124]
[1730653187022,4.09116,2444.3,2444.1,0.5]
[1730653189729,8.18245,2444.3,2444.1,0.5]
[1730653189922,4.09131,2444.2,2444.1,0.5]
[1730653190939,6.43084072,2444.3,2444.1,0.5]
[1730653191149,5.16379202,2444.3,2444.1,1.0]
[1730653191317,9.25506202,2444.3,2444.1,1.0]
[1730653191721,4.09131,2444.2,2444.1,1.0]
[1730653192865,5.16379202,2444.3,2444.1,1.0]
[1730653195349,5.16379202,2444.3,2444.1,1.5]
[1730653196128,4.09099,2444.4,2444.1,1.5]